[Event "Live Chess"]
[Site "Chess.com"]
[Date "2023.05.21"]
[Round "-"]
[White "KGreenGator"]
[Black "CheckThis4"]
[Result "0-1"]
[WhiteElo "1801"]
[BlackElo "2513"]
[TimeControl "300"]
[EndTime "18:09:27 PDT"]
[Termination "CheckThis4 won by checkmate"]

1. c4 {[%clk 0:04:59]} 1... e5 {[%clk 0:04:58.5]} 2. Nc3 {[%clk 0:04:57.9]} 2...
Nc6 {[%clk 0:04:58]} 3. e3 {[%clk 0:04:56.7]} 3... f5 {[%clk 0:04:57.5]} 4. d4
{[%clk 0:04:55.7]} 4... Nf6 {[%clk 0:04:56.8]} 5. d5 {[%clk 0:04:54.5]} 5... Ne7
{[%clk 0:04:55.5]} 6. Nf3 {[%clk 0:04:52.5]} 6... d6 {[%clk 0:04:53.8]} 7. h3
{[%clk 0:04:50.3]} 7... Ng6 {[%clk 0:04:52.4]} 8. Ng5 {[%clk 0:04:45.1]} 8...
Be7 {[%clk 0:04:46.4]} 9. Be2 {[%clk 0:04:42.4]} 9... O-O {[%clk 0:04:44.8]} 10.
Bh5 {[%clk 0:04:36.6]} 10... Nh8 {[%clk 0:04:26.2]} 11. h4 {[%clk 0:04:28]}
11... h6 {[%clk 0:04:21.6]} 12. Ne6 {[%clk 0:04:23]} 12... Bxe6 {[%clk
0:04:19.1]} 13. dxe6 {[%clk 0:04:21.7]} 13... Qc8 {[%clk 0:04:18.2]} 14. Nd5
{[%clk 0:04:13]} 14... Qxe6 {[%clk 0:04:10]} 15. Nxc7 {[%clk 0:04:10.7]} 15...
Qxc4 {[%clk 0:04:06.7]} 16. Nxa8 {[%clk 0:04:09.6]} 16... Rxa8 {[%clk
0:04:05.5]} 17. Be2 {[%clk 0:03:57.1]} 17... Qc6 {[%clk 0:04:03]} 18. Qb3+
{[%clk 0:03:54.1]} 18... Kh7 {[%clk 0:04:00.5]} 19. Bf3 {[%clk 0:03:44.8]} 19...
e4 {[%clk 0:03:58.4]} 20. Be2 {[%clk 0:03:44]} 20... Ng6 {[%clk 0:03:53]} 21.
Qe6 {[%clk 0:03:39.3]} 21... Qc8 {[%clk 0:03:34.5]} 22. Bc4 {[%clk 0:03:24.6]}
22... d5 {[%clk 0:03:28.1]} 23. Bxd5 {[%clk 0:03:13.3]} 23... Bb4+ {[%clk
0:03:20.5]} 24. Bd2 {[%clk 0:03:05.9]} 24... Bxd2+ {[%clk 0:03:18.8]} 25. Kxd2
{[%clk 0:03:02.7]} 25... Qd8 {[%clk 0:03:15.7]} 26. Qxf5 {[%clk 0:02:54]} 26...
Qa5+ {[%clk 0:03:03.5]} 27. Ke2 {[%clk 0:02:50.4]} 27... Nxd5 {[%clk 0:02:55.7]}
28. Qxe4 {[%clk 0:02:40.3]} 28... Qb5+ {[%clk 0:02:47.2]} 29. Kf3 {[%clk
0:02:34]} 29... Rf8+ {[%clk 0:02:41.8]} 30. Kg3 {[%clk 0:02:30.7]} 30... Nf6
{[%clk 0:02:40.3]} 31. Qc2 {[%clk 0:02:25]} 31... Qe5+ {[%clk 0:02:34.6]} 32.
Kh3 {[%clk 0:02:06]} 32... Ne4 {[%clk 0:02:32]} 33. f4 {[%clk 0:01:56]} 33...
Qf5+ {[%clk 0:02:06.5]} 34. Kh2 {[%clk 0:01:42.9]} 34... Nxh4 {[%clk 0:01:58.6]}
35. g3 {[%clk 0:01:31.9]} 35... Nxg3 {[%clk 0:01:50.3]} 36. Qxf5+ {[%clk
0:01:27.7]} 36... Nhxf5 {[%clk 0:01:49]} 37. Rhg1 {[%clk 0:01:15.8]} 37... Re8
{[%clk 0:01:47.9]} 38. Rae1 {[%clk 0:01:09.2]} 38... Ne4 {[%clk 0:01:43.3]} 39.
Re2 {[%clk 0:01:04.6]} 39... h5 {[%clk 0:01:35.9]} 40. Rd1 {[%clk 0:01:01.3]}
40... Re7 {[%clk 0:01:34.7]} 41. Rd5 {[%clk 0:00:59.1]} 41... g6 {[%clk
0:01:33.9]} 42. a3 {[%clk 0:00:53.5]} 42... Kh6 {[%clk 0:01:31.8]} 43. Re5
{[%clk 0:00:52.4]} 43... Rxe5 {[%clk 0:01:24.8]} 44. fxe5 {[%clk 0:00:51.8]}
44... h4 {[%clk 0:01:10.1]} 45. e6 {[%clk 0:00:49.5]} 45... Kg7 {[%clk
0:01:08.3]} 46. Kh3 {[%clk 0:00:46.3]} 46... Kf6 {[%clk 0:01:06.9]} 47. Rc2
{[%clk 0:00:42.5]} 47... Kxe6 {[%clk 0:01:04.4]} 48. Rc7 {[%clk 0:00:40.5]}
48... Ned6 {[%clk 0:01:03.2]} 49. e4 {[%clk 0:00:36.4]} 49... Nd4 {[%clk
0:00:54.9]} 50. Rg7 {[%clk 0:00:33.4]} 50... g5 {[%clk 0:00:41.1]} 51. Rxg5
{[%clk 0:00:30.6]} 51... Nxe4 {[%clk 0:00:38.2]} 52. Rg4 {[%clk 0:00:29.3]}
52... Kd5 {[%clk 0:00:37.2]} 53. Kxh4 {[%clk 0:00:27]} 53... Nd6 {[%clk
0:00:36.2]} 54. Rg7 {[%clk 0:00:25.3]} 54... a5 {[%clk 0:00:34.6]} 55. b4 {[%clk
0:00:23.9]} 55... a4 {[%clk 0:00:33.5]} 56. Kg5 {[%clk 0:00:21.8]} 56... N4b5
{[%clk 0:00:32.6]} 57. Rg6 {[%clk 0:00:20.1]} 57... Nxa3 {[%clk 0:00:31.7]} 58.
Rg7 {[%clk 0:00:19.3]} 58... Nc2 {[%clk 0:00:30.6]} 59. Kh6 {[%clk 0:00:18.5]}
59... a3 {[%clk 0:00:29.9]} 60. Rg3 {[%clk 0:00:16.5]} 60... a2 {[%clk
0:00:28.9]} 61. Rg1 {[%clk 0:00:15.1]} 61... a1=Q {[%clk 0:00:27.7]} 62. Rxa1
{[%clk 0:00:14.8]} 62... Nxa1 {[%clk 0:00:27.4]} 63. Kg6 {[%clk 0:00:13.9]}
63... Nc2 {[%clk 0:00:26.9]} 64. Kf6 {[%clk 0:00:13.4]} 64... Nxb4 {[%clk
0:00:26.4]} 65. Ke7 {[%clk 0:00:13]} 65... Nd3 {[%clk 0:00:25.6]} 66. Kd7 {[%clk
0:00:12.7]} 66... b5 {[%clk 0:00:24.9]} 67. Kc7 {[%clk 0:00:12.4]} 67... b4
{[%clk 0:00:24.4]} 68. Kb6 {[%clk 0:00:12.1]} 68... b3 {[%clk 0:00:23.9]} 69.
Ka5 {[%clk 0:00:11.8]} 69... b2 {[%clk 0:00:22.6]} 70. Ka4 {[%clk 0:00:11.6]}
70... b1=Q {[%clk 0:00:20]} 71. Ka3 {[%clk 0:00:11.3]} 71... Qb4+ {[%clk
0:00:18.4]} 72. Ka2 {[%clk 0:00:10.4]} 72... Qb2# {[%clk 0:00:18.1]} 0-1

[Event "Live Chess"]
[Site "Chess.com"]
[Date "2023.05.21"]
[Round "-"]
[White "Biranidun"]
[Black "KeithArkell"]
[Result "1/2-1/2"]
[WhiteElo "2571"]
[BlackElo "2604"]
[TimeControl "300"]
[EndTime "18:09:44 PDT"]
[Termination "Game drawn by agreement"]

1. e4 {[%clk 0:04:58.5]} 1... e6 {[%clk 0:04:53.2]} 2. d4 {[%clk 0:04:57.6]}
2... d5 {[%clk 0:04:52.5]} 3. Nc3 {[%clk 0:04:55.7]} 3... dxe4 {[%clk
0:04:51.6]} 4. Nxe4 {[%clk 0:04:55.6]} 4... Bd7 {[%clk 0:04:51.1]} 5. Nf3 {[%clk
0:04:54.8]} 5... Bc6 {[%clk 0:04:50.4]} 6. Bd3 {[%clk 0:04:53.8]} 6... Nd7
{[%clk 0:04:49.5]} 7. O-O {[%clk 0:04:52.7]} 7... Ngf6 {[%clk 0:04:48.1]} 8. Ng3
{[%clk 0:04:51.8]} 8... Be7 {[%clk 0:04:45.5]} 9. c4 {[%clk 0:04:47.1]} 9...
Bxf3 {[%clk 0:04:43.8]} 10. Qxf3 {[%clk 0:04:47]} 10... c6 {[%clk 0:04:43.1]}
11. Re1 {[%clk 0:04:45.1]} 11... O-O {[%clk 0:04:41.6]} 12. Bd2 {[%clk
0:04:43.7]} 12... a5 {[%clk 0:04:38.8]} 13. a3 {[%clk 0:04:42.9]} 13... a4
{[%clk 0:04:37.7]} 14. Bc3 {[%clk 0:04:42.6]} 14... Re8 {[%clk 0:04:36.3]} 15.
Rad1 {[%clk 0:04:41.6]} 15... Qc7 {[%clk 0:04:35.3]} 16. Bc2 {[%clk 0:04:39.8]}
16... Bf8 {[%clk 0:04:34.2]} 17. h4 {[%clk 0:04:37.9]} 17... b5 {[%clk
0:04:31.5]} 18. Ne4 {[%clk 0:04:17.3]} 18... bxc4 {[%clk 0:04:18.7]} 19. Nxf6+
{[%clk 0:04:00.9]} 19... Nxf6 {[%clk 0:04:17.7]} 20. Qe2 {[%clk 0:03:57.5]}
20... Nd5 {[%clk 0:04:12]} 21. Qxc4 {[%clk 0:03:56.2]} 21... Nxc3 {[%clk
0:04:10.7]} 22. Qxc3 {[%clk 0:03:55.4]} 22... g6 {[%clk 0:03:58.2]} 23. Be4
{[%clk 0:03:53.4]} 23... Rec8 {[%clk 0:03:56.1]} 24. Rc1 {[%clk 0:03:52.4]}
24... Bg7 {[%clk 0:03:55.4]} 25. Red1 {[%clk 0:03:26.8]} 25... Qf4 {[%clk
0:03:46.9]} 26. Qf3 {[%clk 0:03:22.8]} 26... Qxf3 {[%clk 0:03:35.8]} 27. Bxf3
{[%clk 0:03:22.7]} 27... Ra6 {[%clk 0:03:31]} 28. Rc4 {[%clk 0:03:17.5]} 28...
Rb6 {[%clk 0:03:29.5]} 29. Rd2 {[%clk 0:03:14]} 29... Rcb8 {[%clk 0:03:26.8]}
30. Rxa4 {[%clk 0:03:11.4]} 30... Rxb2 {[%clk 0:03:25.5]} 31. Rxb2 {[%clk
0:03:11.3]} 31... Rxb2 {[%clk 0:03:24]} 32. Ra8+ {[%clk 0:03:02]} 32... Bf8
{[%clk 0:03:22.7]} 33. Bxc6 {[%clk 0:03:01.6]} 33... Rd2 {[%clk 0:03:12.2]} 34.
a4 {[%clk 0:01:53.2]} 34... Rd1+ {[%clk 0:03:04.8]} 35. Kh2 {[%clk 0:01:52]}
35... Rxd4 {[%clk 0:03:04.1]} 36. a5 {[%clk 0:01:00.9]} 36... Rxh4+ {[%clk
0:03:02.5]} 37. Kg3 {[%clk 0:01:00.5]} 37... Rc4 {[%clk 0:03:02]} 38. Rc8 {[%clk
0:00:58.2]} 38... Rc3+ {[%clk 0:03:00]} 39. f3 {[%clk 0:00:53.9]} 39... Ra3
{[%clk 0:02:58.3]} 40. Ra8 {[%clk 0:00:49.9]} 40... Kg7 {[%clk 0:02:53.5]} 41.
a6 {[%clk 0:00:49.4]} 41... Bd6+ {[%clk 0:02:52.2]} 42. Kf2 {[%clk 0:00:44.4]}
42... Ra2+ {[%clk 0:02:50.8]} 43. Kf1 {[%clk 0:00:43.9]} 43... Bc5 {[%clk
0:02:48.3]} 44. f4 {[%clk 0:00:42.6]} 44... h5 {[%clk 0:02:44.7]} 45. Bb7 {[%clk
0:00:37.6]} 45... Kf6 {[%clk 0:02:39.1]} 46. Rc8 {[%clk 0:00:36.1]} 46... Be3
{[%clk 0:02:31.7]} 47. g3 {[%clk 0:00:34.7]} 47... Kf5 {[%clk 0:02:29.4]} 48.
Rc7 {[%clk 0:00:32.2]} 48... Kg4 {[%clk 0:02:27.7]} 49. Rxf7 {[%clk 0:00:28.6]}
49... Kxg3 {[%clk 0:02:25.4]} 50. Rf6 {[%clk 0:00:23.8]} 50... h4 {[%clk
0:02:17.8]} 51. Rxg6+ {[%clk 0:00:23]} 51... Kxf4 {[%clk 0:02:16.3]} 52. Rxe6
{[%clk 0:00:21.9]} 52... Ba7 {[%clk 0:02:11.3]} 53. Rf6+ {[%clk 0:00:19.6]}
53... Kg4 {[%clk 0:02:09.4]} 54. Rg6+ {[%clk 0:00:18.7]} 54... Kf5 {[%clk
0:02:07.3]} 55. Rh6 {[%clk 0:00:18]} 55... Kg5 {[%clk 0:02:04.3]} 56. Rh8 {[%clk
0:00:17.2]} 1/2-1/2

[Event "Live Chess"]
[Site "Chess.com"]
[Date "2023.05.21"]
[Round "-"]
[White "Tushinskiy"]
[Black "jimwad"]
[Result "1-0"]
[WhiteElo "2159"]
[BlackElo "1250"]
[TimeControl "300"]
[EndTime "18:10:24 PDT"]
[Termination "Tushinskiy won by resignation"]

1. d4 {[%clk 0:04:57.8]} 1... d5 {[%clk 0:04:58.8]} 2. c3 {[%clk 0:04:57.7]}
2... Nf6 {[%clk 0:04:57.1]} 3. Nf3 {[%clk 0:04:57.6]} 3... e6 {[%clk 0:04:55.3]}
4. Bf4 {[%clk 0:04:52.6]} 4... Bd6 {[%clk 0:04:53.5]} 5. Bg3 {[%clk 0:04:51.8]}
5... Bxg3 {[%clk 0:04:52.1]} 6. hxg3 {[%clk 0:04:51.7]} 6... h6 {[%clk
0:04:49.7]} 7. Nbd2 {[%clk 0:04:51]} 7... Nc6 {[%clk 0:04:48.6]} 8. Qc2 {[%clk
0:04:50.2]} 8... O-O {[%clk 0:04:47.5]} 9. e4 {[%clk 0:04:49.4]} 9... dxe4
{[%clk 0:04:46.1]} 10. Nxe4 {[%clk 0:04:49.3]} 10... Nxe4 {[%clk 0:04:44.3]} 11.
Qxe4 {[%clk 0:04:49.2]} 11... Qf6 {[%clk 0:04:42.3]} 12. Bd3 {[%clk 0:04:47.5]}
12... Qg6 {[%clk 0:04:37.5]} 13. Qe3 {[%clk 0:04:45.9]} 13... Qf6 {[%clk
0:04:35.7]} 14. Ne5 {[%clk 0:04:44.9]} 14... Nxe5 {[%clk 0:04:34.2]} 15. dxe5
{[%clk 0:04:44.8]} 15... Qe7 {[%clk 0:04:24.2]} 16. f4 {[%clk 0:04:43.1]} 16...
f5 {[%clk 0:04:22.7]} 17. O-O-O {[%clk 0:04:40.3]} 17... b6 {[%clk 0:04:12]} 18.
g4 {[%clk 0:04:33.5]} 18... fxg4 {[%clk 0:04:08.8]} 19. Qg3 {[%clk 0:04:32.8]}
19... Bb7 {[%clk 0:04:06.6]} 20. Qxg4 {[%clk 0:04:30.2]} 20... Rad8 {[%clk
0:03:57.7]} 21. Rxh6 {[%clk 0:04:28.4]} 21... Rxd3 {[%clk 0:03:41.5]} 22. Rxd3
{[%clk 0:04:26.2]} 22... Be4 {[%clk 0:03:40.1]} 23. Rd4 {[%clk 0:04:22.2]} 23...
Bf5 {[%clk 0:03:36.6]} 24. Qg3 {[%clk 0:04:21.2]} 24... Rf7 {[%clk 0:03:22.3]}
25. Rh1 {[%clk 0:04:17.5]} 25... Qc5 {[%clk 0:03:06.4]} 26. Qh4 {[%clk
0:04:10.9]} 26... Qe7 {[%clk 0:03:00.3]} 27. Rd8+ {[%clk 0:04:08]} 1-0

[Event "Live Chess"]
[Site "Chess.com"]
[Date "2023.05.21"]
[Round "-"]
[White "garyjc"]
[Black "GMHarry-youtube"]
[Result "0-1"]
[WhiteElo "1035"]
[BlackElo "2044"]
[TimeControl "300"]
[EndTime "18:10:46 PDT"]
[Termination "GMHarry-youtube won by checkmate"]

1. e4 {[%clk 0:04:54.6]} 1... c5 {[%clk 0:04:58.7]} 2. Nc3 {[%clk 0:04:52.4]}
2... d6 {[%clk 0:04:57.8]} 3. f4 {[%clk 0:04:46.5]} 3... Nf6 {[%clk 0:04:55.5]}
4. Bc4 {[%clk 0:04:41.4]} 4... g6 {[%clk 0:04:52.8]} 5. Nf3 {[%clk 0:04:33.8]}
5... Bg7 {[%clk 0:04:51.4]} 6. d3 {[%clk 0:04:30.2]} 6... Kf8 {[%clk 0:04:50]}
7. O-O {[%clk 0:04:27.9]} 7... Nc6 {[%clk 0:04:48.6]} 8. f5 {[%clk 0:04:07.2]}
8... gxf5 {[%clk 0:04:45.7]} 9. exf5 {[%clk 0:04:05.6]} 9... Bxf5 {[%clk
0:04:45.6]} 10. Ng5 {[%clk 0:04:00.5]} 10... Bg6 {[%clk 0:04:43.6]} 11. Qe1
{[%clk 0:03:47.3]} 11... Nd4 {[%clk 0:04:22.2]} 12. Qd2 {[%clk 0:03:27]} 12...
h6 {[%clk 0:04:08.7]} 13. Nf3 {[%clk 0:02:46.6]} 13... Nxf3+ {[%clk 0:03:57.1]}
14. Rxf3 {[%clk 0:02:43.3]} 14... Kg8 {[%clk 0:03:40.2]} 15. Qf2 {[%clk
0:02:22.1]} 15... Kh7 {[%clk 0:03:37]} 16. Be3 {[%clk 0:02:06.2]} 16... d5
{[%clk 0:03:28.4]} 17. Bb5 {[%clk 0:01:54]} 17... d4 {[%clk 0:03:22.5]} 18. Bxh6
{[%clk 0:01:52.6]} 18... Bxh6 {[%clk 0:03:19.5]} 19. Rh3 {[%clk 0:01:51]} 19...
dxc3 {[%clk 0:03:17.2]} 20. bxc3 {[%clk 0:01:49]} 20... Kg7 {[%clk 0:03:15.2]}
21. Re1 {[%clk 0:01:37.5]} 21... e6 {[%clk 0:02:51.5]} 22. Rf1 {[%clk
0:00:57.5]} 22... Bg5 {[%clk 0:02:44.8]} 23. Rf3 {[%clk 0:00:42.4]} 23... Qd6
{[%clk 0:02:40.2]} 24. Rxf6 {[%clk 0:00:31.6]} 24... Qxh2# {[%clk 0:02:36.8]}
0-1

[Event "Live Chess"]
[Site "Chess.com"]
[Date "2023.05.21"]
[Round "-"]
[White "Fazer180"]
[Black "gmnorfolk"]
[Result "1/2-1/2"]
[WhiteElo "1751"]
[BlackElo "2120"]
[TimeControl "300"]
[EndTime "18:10:57 PDT"]
[Termination "Game drawn - insufficient material"]

1. e4 {[%clk 0:04:58.8]} 1... c5 {[%clk 0:04:58.4]} 2. Nf3 {[%clk 0:04:57.6]}
2... d6 {[%clk 0:04:57.5]} 3. d4 {[%clk 0:04:57.5]} 3... cxd4 {[%clk 0:04:56.7]}
4. Nxd4 {[%clk 0:04:57.4]} 4... Nf6 {[%clk 0:04:55.7]} 5. Nc3 {[%clk 0:04:56.8]}
5... a6 {[%clk 0:04:55.2]} 6. Be3 {[%clk 0:04:54.7]} 6... e5 {[%clk 0:04:53.3]}
7. Nb3 {[%clk 0:04:52.2]} 7... Be7 {[%clk 0:04:53]} 8. Be2 {[%clk 0:04:49.5]}
8... Be6 {[%clk 0:04:51.4]} 9. f3 {[%clk 0:04:44]} 9... Nbd7 {[%clk 0:04:40.8]}
10. Nd5 {[%clk 0:04:39.6]} 10... Nxd5 {[%clk 0:04:35.1]} 11. exd5 {[%clk
0:04:39.5]} 11... Bf5 {[%clk 0:04:34.3]} 12. Bd3 {[%clk 0:04:34.8]} 12... Bxd3
{[%clk 0:04:32.8]} 13. Qxd3 {[%clk 0:04:33.6]} 13... a5 {[%clk 0:04:31.6]} 14.
Qb5 {[%clk 0:04:27.9]} 14... O-O {[%clk 0:04:26.9]} 15. O-O {[%clk 0:04:09.8]}
15... a4 {[%clk 0:04:23.1]} 16. Nd2 {[%clk 0:04:07.6]} 16... Ra5 {[%clk
0:04:18.5]} 17. Qxb7 {[%clk 0:04:00.6]} 17... Nc5 {[%clk 0:04:06.4]} 18. Bxc5
{[%clk 0:03:52]} 18... Rxc5 {[%clk 0:04:05.1]} 19. c4 {[%clk 0:03:47.8]} 19...
Bg5 {[%clk 0:04:03.6]} 20. Ne4 {[%clk 0:03:33.1]} 20... Be3+ {[%clk 0:03:54.5]}
21. Kh1 {[%clk 0:03:32.1]} 21... Rxc4 {[%clk 0:03:53.9]} 22. Rfe1 {[%clk
0:03:22.5]} 22... Bc5 {[%clk 0:03:42.9]} 23. Nxc5 {[%clk 0:03:17.9]} 23... Rxc5
{[%clk 0:03:40]} 24. Qb4 {[%clk 0:03:12.4]} 24... Qa8 {[%clk 0:03:34.2]} 25.
Red1 {[%clk 0:03:04.9]} 25... Rb8 {[%clk 0:03:29]} 26. Qa3 {[%clk 0:02:56.4]}
26... Qa5 {[%clk 0:03:07.9]} 27. Rac1 {[%clk 0:02:46.6]} 27... Rxc1 {[%clk
0:03:04.3]} 28. Rxc1 {[%clk 0:02:43.4]} 28... Qd2 {[%clk 0:02:59.1]} 29. Qc3
{[%clk 0:02:35]} 29... Qxc3 {[%clk 0:02:44.2]} 30. Rxc3 {[%clk 0:02:32.2]} 30...
Kf8 {[%clk 0:02:38.9]} 31. b3 {[%clk 0:02:29.1]} 31... axb3 {[%clk 0:02:34.9]}
32. axb3 {[%clk 0:02:28.1]} 32... Rb5 {[%clk 0:02:32.9]} 33. Rd3 {[%clk
0:02:26.2]} 33... f5 {[%clk 0:02:30.4]} 34. Kg1 {[%clk 0:02:16.8]} 34... Kf7
{[%clk 0:02:24.7]} 35. Kf2 {[%clk 0:02:15.3]} 35... e4 {[%clk 0:02:21.5]} 36.
fxe4 {[%clk 0:02:13.4]} 36... fxe4 {[%clk 0:02:20.5]} 37. Rd4 {[%clk 0:02:08.8]}
37... Rxb3 {[%clk 0:02:18.5]} 38. Rxe4 {[%clk 0:02:07.3]} 38... Rd3 {[%clk
0:02:18.1]} 39. Rf4+ {[%clk 0:02:02.6]} 39... Kg8 {[%clk 0:02:16.6]} 40. Rf5
{[%clk 0:02:00.8]} 40... g6 {[%clk 0:02:14.6]} 41. Rg5 {[%clk 0:01:57.6]} 41...
Kf7 {[%clk 0:02:13.6]} 42. Ke2 {[%clk 0:01:53.8]} 42... Rd4 {[%clk 0:02:09]} 43.
Ke3 {[%clk 0:01:52]} 43... Rd1 {[%clk 0:02:03.3]} 44. Ke4 {[%clk 0:01:48.5]}
44... Kf6 {[%clk 0:01:59]} 45. Rg3 {[%clk 0:01:46.4]} 45... Re1+ {[%clk
0:01:57.8]} 46. Kd4 {[%clk 0:01:43.7]} 46... Rf1 {[%clk 0:01:55.5]} 47. Rh3
{[%clk 0:01:40.7]} 47... h5 {[%clk 0:01:53]} 48. Rg3 {[%clk 0:01:33.2]} 48... g5
{[%clk 0:01:47.5]} 49. Kc4 {[%clk 0:01:30]} 49... g4 {[%clk 0:01:42.8]} 50. Kb5
{[%clk 0:01:27.5]} 50... Ke5 {[%clk 0:01:40.6]} 51. h3 {[%clk 0:01:19.2]} 51...
Rb1+ {[%clk 0:01:15]} 52. Kc6 {[%clk 0:01:17.5]} 52... Rc1+ {[%clk 0:01:13.1]}
53. Kd7 {[%clk 0:01:16.5]} 53... gxh3 {[%clk 0:01:08.3]} 54. Rxh3 {[%clk
0:01:14.2]} 54... Kxd5 {[%clk 0:01:03.5]} 55. Rxh5+ {[%clk 0:01:13.1]} 55... Ke4
{[%clk 0:01:02.9]} 56. Kxd6 {[%clk 0:01:11.2]} 56... Kf4 {[%clk 0:01:01.9]} 57.
Rh8 {[%clk 0:01:08.2]} 57... Rg1 {[%clk 0:00:59.3]} 58. Rg8 {[%clk 0:01:06.6]}
58... Kf5 {[%clk 0:00:55.1]} 59. Ke7 {[%clk 0:01:03]} 59... Kf4 {[%clk
0:00:52.9]} 60. Kf6 {[%clk 0:01:01.6]} 60... Ra1 {[%clk 0:00:46.4]} 61. g4
{[%clk 0:00:59.7]} 61... Ra6+ {[%clk 0:00:45.4]} 62. Ke7 {[%clk 0:00:58.6]}
62... Ra5 {[%clk 0:00:41.6]} 63. Kd6 {[%clk 0:00:56]} 63... Rg5 {[%clk
0:00:39.3]} 64. Rxg5 {[%clk 0:00:51.4]} 64... Kxg5 {[%clk 0:00:38.1]} 65. Ke6
{[%clk 0:00:50.5]} 65... Kxg4 {[%clk 0:00:37.6]} 1/2-1/2

[Event "Live Chess"]
[Site "Chess.com"]
[Date "2023.05.21"]
[Round "-"]
[White "Jo1ts"]
[Black "xx_blindpuffin_xx"]
[Result "0-1"]
[WhiteElo "833"]
[BlackElo "2205"]
[TimeControl "300"]
[EndTime "18:11:13 PDT"]
[Termination "xx_blindpuffin_xx won by resignation"]

1. d4 {[%clk 0:04:56.7]} 1... c6 {[%clk 0:04:58.7]} 2. Nf3 {[%clk 0:04:53.7]}
2... g6 {[%clk 0:04:57.2]} 3. Bf4 {[%clk 0:04:47.3]} 3... Bg7 {[%clk 0:04:55.8]}
4. e3 {[%clk 0:04:46.2]} 4... Nf6 {[%clk 0:04:54.5]} 5. Nbd2 {[%clk 0:04:41.1]}
5... O-O {[%clk 0:04:53.6]} 6. Bd3 {[%clk 0:04:39.7]} 6... d5 {[%clk 0:04:52.5]}
7. c3 {[%clk 0:04:38.8]} 7... Re8 {[%clk 0:04:49.6]} 8. O-O {[%clk 0:04:33.7]}
8... Bg4 {[%clk 0:04:46]} 9. Be2 {[%clk 0:04:31]} 9... Bxf3 {[%clk 0:04:23.2]}
10. Nxf3 {[%clk 0:04:26.9]} 10... Nbd7 {[%clk 0:04:21.6]} 11. Bd3 {[%clk
0:04:18.9]} 11... Nh5 {[%clk 0:04:17.4]} 12. Be5 {[%clk 0:04:12.2]} 12... f6
{[%clk 0:03:59.5]} 13. Bf4 {[%clk 0:04:07.9]} 13... Nxf4 {[%clk 0:03:50.7]} 14.
exf4 {[%clk 0:04:07.8]} 14... e5 {[%clk 0:03:45.9]} 15. fxe5 {[%clk 0:04:04.4]}
15... fxe5 {[%clk 0:03:45.8]} 16. Re1 {[%clk 0:03:50]} 16... e4 {[%clk
0:03:43.5]} 0-1